{"text_format":"2","workbook":"xlsx","n_sheets":27,"sheets":["Portada","Balance de Comprobación","Cambios Act. Netos Disponibles","Act. Netos Dispon. Beneficios","Nota 1","Nota 2","Nota 3","Nota 4","Nota 5","Nota 6","Nota 7","Nota 8","Nota 9","Nota 10","Nota 11","Nota 12","Nota 13","Nota 14","Nota 15","Nota 16","Nota 17","Nota 18","Nota 19","Nota 20","Nota 21","Nota 22","Nota 23"],"not_rendered":{"charts":0,"images":2,"macros":0,"external_links":0,"defined_names":24,"comments":0,"pivot_tables":0},"unopened":[],"bounds":{"document_bytes":16777216,"sheet_cells":100000,"run_cost":"one","rows_first":2000,"rows_last":500,"rows_between":2000,"halvings":0,"cell_chars":16384,"cell_head_chars":4096},"cells_cut":0,"cells_raw":0,"read":"whole","date_system":"1900"}

{"sheet":"Portada","index":0,"n_rows":0,"n_cols":0,"rows_kept":0,"cut":false,"hidden":false,"merged":[]}

{"sheet":"Balance de Comprobación","index":1,"n_rows":72,"n_cols":8,"rows_kept":72,"cut":false,"hidden":false,"merged":[[63,3,63,5],[48,2,48,3],[1,2,1,7],[3,2,3,7],[5,2,5,7],[61,3,62,5]]}
[]
[null,null,"Fondo de Jubilaciones y Pensiones del Poder Judicial"]
[]
[null,null,"Balance de Comprobación"]
[]
[null,null,"Al 30 de Junio 2018"]
[null," "]
[]
[null,null,"ACTIVO"]
[null,null,"Cuentas Corrientes Y De Ahorro ",null,null,476298051.88]
[null,null,"Inversiones En Valores De Emisores Nacionales",null,null,498183677583.47998]
[null,null,"Cuentas Por Cobrar",null,null,675504614.37]
[null,null,"Productos Por Cobrar Sobre Inversiones",null,null,8198037711.1400003]
[null,null,"Préstamos a Afiliados",null,null,19370526.34]
[null,null,"Aportes Por Cobrar A Los Trabajadores",null,null,3724588180.6100001]
[null,null,"Aportes Por Cobrar Al Patrono",null,null,3011373986.3099999]
[null,null,"Aportes Por Cobrar Al Estado",null,null,252393852.94999999]
[null,null,"Otros Aportes Por Cobrar",null,null,243824462.44999999]
[null,null,"Mobiliario Y Equipo"]
[null,null,"Equipo De Cómputo"]
[null,null,"(Depreciación Acumulada)"]
[null,null,"Costo de Programas Informáticos-Software",null,null,7618670]
[null,null,"(Amortización Programas Informáticos)",null,null,-7618670]
[null,null,"GASTOS"]
[null,null,"Pérdidas por Negociación de Instrumentos Financieros"]
[null,null,"Pérdidas Por Fluctuación Cambiaria",null,null,300557726]
[null,null,"Pérdidas por Variaciones en la Unidad de Referencia",null,null,100969199.22]
[null,null,"Gastos Generales",null,null,503596140.04000002]
[null,null,"PASIVO"]
[null,null,"Retenciones A Pensionados",{"$nulls":4},710384688.22000003]
[null,null,"Obligaciones Por Liquidar Empleados",{"$nulls":4},181343.64]
[null,null,"Obligaciones Transitorias por Liquidar",{"$nulls":4},126082951.56]
[null,null,"Retención Por Servicios Recibidos"]
[null,null,"Cotización Seguro De Enfermedad Y Maternidad",{"$nulls":4},503601116.66000003]
[null,null,"Provisión Para Pensiones En Curso De Pago ",{"$nulls":4},508459758060.64001]
[null,null,"PATRIMONIO"]
[null,null,"Aportaciones recibidas ",{"$nulls":4},2696479817.5999999]
[null,null,"INGRESOS"]
[null,null,"Productos Sobre Inversiones De Emisores Nacionales",{"$nulls":4},2994469315.79]
[null,null,"Intereses Sobre Saldos En Cuentas Bancarias",{"$nulls":4},0]
[null,null,"Por Negociación de Instrumentos Financieros",{"$nulls":4},0]
[null,null,"Ganancias por Fluctuación Cambiaria",{"$nulls":4},177250650.28]
[null,null,"Ganancias por Variaciones en la Unidad de Referencia",{"$nulls":4},3371064.06]
[null,null,"Ingresos sobre Préstamos de Afiliados",{"$nulls":4},102623.76]
[null,null,"Otros Ingresos",{"$nulls":4},18510402.579999998]
[]
[]
[]
[null,null,"Sumas Iguales",null,null,{"$f":"SUM(F10:F28)","v":515690192034.78998},null,{"$f":"SUM(H30:H45)","v":515690192034.79004}]
[]
[]
[]
[]
[]
[null,null,null,"Lic. Luis Guillermo Vasquez Ureña ",null,"MBA. Maria Antonieta Herrera Charraun "]
[null,null,null," Jefe Subproceso Contabilidad ",null,"Jefa Proceso Presupuestario Contable "]
[]
[]
[]
[]
[]
[null,null,null,"MBA Miguel Ovares Chavarria "]
[]
[null,null,null,"Jefe Macroproceso Financiero Contable"]
[]
[]
[]
[null,null,"Realizado por:"]
[null,null,"Licda. Kattia Vargas Pérez "]
[null,null,"Cordiandora , Subproceso Contabilidad "]
[]
[null,null,"Observación: Enlace al Manual de Políticas Contables."]

{"sheet":"Cambios Act. Netos Disponibles","index":2,"n_rows":80,"n_cols":9,"rows_kept":80,"cut":false,"hidden":false,"merged":[]}
[null,"Fondo de Jubilaciones y Pensiones"]
[null,"Estado de Cambios en los Activos Netos Disponibles"]
[null,"Por el mes terminado al 30/06/2018"]
[null,"(En colones sin céntimos)"]
[]
[]
[null,null,null,"SALDO MENSUAL",null,null,"SALDO ACUMULADO"]
[null,null,"NOTAS "]
[null,"SALDO INICIAL",null,null,2627562983.1300001,"(1)",null,2908712973,"(2)"]
[]
[null,"INGRESOS",null,null,{"$f":"D13+D21","v":3193704056.4700003},null,null,{"$f":"G13+G21","v":20571410169.759998}]
[]
[null,"INGRESOS FINANCIEROS",null,{"$f":"SUM(D14:D19)","v":3175193653.8900003},null,null,{"$f":"SUM(G14:G19)","v":20516920217.669998}]
[null,"Productos sobre Inversiones de Emisores Nacionales","Nota 1",{"$f":"+'Nota 1'!H18","v":2994469315.79},null,null,{"$f":"+'Nota 1'!H31","v":17406830420.339996}]
[null,"Intereses sobre Saldos en Cuentas Corrientes","Nota 2",0,null,null,{"$f":"+'Nota 2'!G21","v":7167129.25}]
[null,"Por negociación de instrumentos financieros",{"$nulls":4},0]
[null,"Ganancias por Fluctuación Cambiaria","Nota 3",{"$f":"+'Nota 3'!D12","v":177250650.28000003},null,null,{"$f":"+'Nota 3'!F12","v":1948606691.4999998}]
[null,"Ganancias por Variaciones en la Unidad de Referencia","Nota 4",{"$f":"+'Nota 4'!D9","v":3371064.06},null,null,{"$f":"+'Nota 4'!F9","v":1152783159.4000001}]
[null,"Ingresos sobre Préstamos a Afiliados y Pensionados ","Nota 5",{"$f":"+'Nota 5'!J9","v":102623.76},null,null,{"$f":"+'Nota 5'!L9","v":1532817.18}]
[]
[null,"OTROS INGRESOS",null,18510402.579999998,null,null,54489952.090000004]
[]
[null,"PLAN DE CONTRIBUCIONES","Nota 6",null,{"$f":"SUM(D26:D29)","v":7217774583.8400002},null,null,{"$f":"+'Nota 6'!H15","v":39670626262.809998}]
[]
[null,"RESERVAS EN FORMACION"]
[null,"De los trabajadores",null,{"$f":"+'Nota 6'!F9","v":3010451693.0799999},null,null,{"$f":"+'Nota 6'!H9","v":15553440538.629999}]
[null,"Del Patrono",null,{"$f":"+'Nota 6'!F10","v":3258568676.5300002},null,null,{"$f":"+'Nota 6'!H10","v":19354397319.290001}]
[null,"Del Estado",null,{"$f":"+'Nota 6'!F11","v":131831009.79000001},null,null,{"$f":"+'Nota 6'!H11","v":794220984.84000003}]
[null,"De los Pensionados",null,{"$f":"+'Nota 6'!F12+'Nota 6'!F13","v":816923204.44000006},null,null,{"$f":"+'Nota 6'!H12+'Nota 6'!H13","v":3968567420.0500002}]
[null,"Rendimientos Acumulados",null,0]
[]
[null,"UTILIDAD ( PERDIDA DEL EJERCICIO )",null,0]
[]
[null,"TOTAL ADICIONES",null,null,{"$f":"E11+E23","v":10411478640.310001},null,null,{"$f":"H11+H23","v":60242036432.569992}]
[]
[null,"SALIDA DE RECURSOS",null,null,{"$f":"D37","v":9756136468.0300007},null,null,{"$f":"G37","v":55407657657.079994}]
[null,"Por Nuevos Pensionados","Nota 7",{"$f":"+'Nota 7'!D12","v":9756136468.0300007},null,null,{"$f":"+'Nota 7'!F12","v":55407657657.079994}]
[]
[null,"GASTOS",null,null,{"$f":"D41+D46","v":905123065.25999999},null,null,{"$f":"G41+G46","v":5365309658.6199989}]
[]
[null,"GASTOS FINANCIEROS",null,{"$f":"D43+D44","v":401526925.22000003},null,null,{"$f":"SUM(G43:G44)","v":2397596006.2799997}]
[null,"Pérdida por Negociación de Inst. Financ.",null,0,null,null,0]
[null,"Pérdida por Fluctuación Cambiaria","Nota 8",{"$f":"+'Nota 8'!D12","v":300557726},null,null,{"$f":"+'Nota 8'!F12","v":2173622611.6599998}]
[null,"Pérdida por Variaciones en la Unidad de Referencia","Nota 9",{"$f":"+'Nota 9'!D10","v":100969199.22},null,null,{"$f":"+'Nota 9'!F10","v":223973394.62}]
[]
[null,"GASTOS GENERALES","Nota 10",{"$f":"+'Nota 10'!D13","v":503596140.04000002},null,null,{"$f":"+'Nota 10'!F13","v":2967713652.3399997}]
[]
[null,"TOTAL DE DEDUCCIONES",null,null,{"$f":"E36+E39","v":10661259533.290001},null,null,{"$f":"H36+H39","v":60772967315.699997}]
[]
[null,"ACTIVOS NETOS DISPONIBLES PARA BENEFICIOS"]
[null,"FUTUROS AL FINAL DEL PERIODO (3)",null,null,{"$f":"E9+E34-E48","v":2377782090.1500015},null,null,{"$f":"H9+H34-H48","v":2377782089.8699951}]
[]
[]
[null,"Observaciones: "]
[null,"(1) Saldo inicial mensual: Corresponde al total de activos disponibles para beneficios futuros al final del mes de mayo 2018."]
[null,"(2) Saldo acumulado: Pertenece al total de activos disponibles de beneficios futuros al final del año anterior (Diciembre 2017)."]
[null,"(3) Activos Netos Disponibles para Beneficios Futuros al Final del Periodo: Corresponde a la suma del saldo inicial mas el total de adiciones, menos el total de deducciones."]
{"$rows_empty":22}
[null,"Observación: Enlace al Manual de Políticas Contables."]

{"sheet":"Act. Netos Dispon. Beneficios","index":3,"n_rows":83,"n_cols":5,"rows_kept":83,"cut":false,"hidden":false,"merged":[]}
[]
[null,"Fondo de Jubilaciones y Pensiones del Poder Judicial"]
[null,"Estado de Activos Netos Disponibles para Beneficios"]
[null,"AL 30/06/2018"]
[null,"(En colones sin céntimos)"]
[null,null,"NOTAS"]
[null,"DISPONIBILIDADES",null,null,{"$f":"D8","v":476298051.88000005}]
[null,"Cuentas Corrientes y de Ahorro","Nota 11",{"$f":"+'Nota 11'!D20","v":476298051.88000005}]
[]
[null,"INVERSIONES EN VALORES ",null,null,{"$f":"D12","v":498183677583.48004}]
[null,"EN CURSO DE PAGO"]
[null,"Inversiones en Valores de Emisores Nacionales ","Nota 12",{"$f":"+'Nota 12'!D25","v":498183677583.48004}]
[]
[null,"CUENTAS Y PRODUCTOS POR COBRAR SOBRE INVERSIONES",null,null,{"$f":"SUM(D16:D17)","v":8873542325.5100021}]
[null,"PROVISION PARA PENSIONES EN CURSO DE PAGO"]
[null,"Cuentas Por Cobrar","Nota 13",{"$f":"+'Nota 13'!D13","v":675504614.37}]
[null,"Productos Por Cobrar Sobre Inversiones De Emisores Nacionales ","Nota 14",{"$f":"+'Nota 14'!D18","v":8198037711.1400013}]
[]
[null,"PRESTAMOS A AFILIADOS Y PENSIONADOS",null,null,{"$f":"D20","v":19370526.339999557}]
[null,"Préstamos por Cobrar","Nota 15",{"$f":"+'Nota 15'!D21","v":19370526.339999557}]
[null,"Productos por Cobrar sobre Préstamos","Nota 15",0]
[]
[null,"APORTES POR COBRAR",null,null,{"$f":"SUM(D24:D27)","v":7232180482.3188}]
[null,"Aportes Por Cobrar A Los Trabajadores","Nota 16",{"$f":"+'Nota 16'!J9","v":3724588180.6100001}]
[null,"Aportes Por Cobrar Al Patrono","Nota 16",{"$f":"+'Nota 16'!J13","v":3011373986.3087997}]
[null,"Aportes Por Cobrar Al Estado","Nota 16",{"$f":"+'Nota 16'!J16","v":252393852.95000002}]
[null,"Otros Aportes Por Cobrar","Nota 16",{"$f":"+'Nota 16'!J19","v":243824462.44999999}]
[]
[null,"PROPIEDAD, PLANTA Y EQUIPO",null,null,0]
[null,"Mobiliario y Equipo",null,0]
[null,"Equipo de Cómputo",null,0]
[null,"(Depreciación Acumulada)",null,0]
[]
[null,"OTROS ACTIVOS",null,null,0]
[null,"Intangibles","Nota 17",0]
[]
[null,"ACTIVO TOTAL",null,null,{"$f":"E7+E10+E14+E19+E23","v":514785068969.52887}]
[]
[null,"CUENTAS POR PAGAR",null,null,{"$f":"SUM(D40:D42)","v":836648983.88000011}]
[null,"Retenciones A Pensionados","Nota 18",{"$f":"+'Nota 18'!E14","v":710384688.22000003}]
[null,"Obligaciones Por Liquidar Empleados y Exempleados","Nota 19",{"$f":"+'Nota 19'!D16","v":181343.83}]
[null,"Obligaciones Transitorias por Liquidar","Nota 20",{"$f":"+'Nota 20'!D20","v":126082951.83000001}]
[]
[null,"PROVISIONES",null,null,{"$f":"D45","v":503601116.66000003}]
[null,"Cotización Seguro De Enfermedad y Maternidad","Nota 21",{"$f":"+'Nota 21'!F9","v":503601116.66000003}]
[]
[null,"PROVISIONES PARA PENSIONES EN CURSO DE PAGO","Nota 22",null,{"$f":"+'Nota 22'!J13","v":511067036779.29999}]
[]
[null,"PASIVO TOTAL",null,null,{"$f":"E47+E44+E39","v":512407286879.83997}]
[{"$nulls":4}," "]
[null,"ACTIVOS NETOS DISPONIBLES PARA BENEFICIOS FUTUROS (1)",null,null,{"$f":"E37-E49","v":2377782089.6889038}]
[]
[null,"CUENTAS DE ORDEN","Nota 23",null,289645067.5]
[]
[null,"Observaciones:"]
[null,"(1) Activos Netos Disponibles para Beneficios Futuros al Final del Periodo: Corresponde al total de activo menos el total de pasivo."]
{"$rows_empty":26}
[null,"Observación: Enlace al Manual de Políticas Contables."]

{"sheet":"Nota 1","index":4,"n_rows":31,"n_cols":8,"rows_kept":31,"cut":false,"hidden":false,"merged":[[2,1,3,7],[4,1,4,7]]}
[]
[null,"Nota 1:"]
[null,"Productos sobre Inversiones de Emisores Nacionales"]
[]
[null,"al 30 de Junio de 2018"]
[]
[null,"MENSUAL "]
[]
[null,"PRODUCTOS SOBRE INVERSIONES DE VALORES NACIONALES",null,"COLONES",null,"DOLARES",null,"TOTAL"]
[]
[null,"Intereses devengados",null,2807296331.1999998,null,197361723.47999999,null,3004658054.6799998]
[null,"Amortización de descuento",null,3850735.63,null,2823263.92,null,6673999.5499999998]
[null,"Comisión devengada",null,-1207266.5900000001,null,-36352.129999999997,null,-1243618.72]
[null,"Amortización de prima",null,-141303609.42000002,null,-1216252.73,null,-142519862.15000001]
[null,"Otros intereses devengados",null,0,null,0,null,0]
[null,"Ingresos por Dividendos",null,0,null,126900742.43000001,null,126900742.43000001]
[]
[null,"TOTAL DE PRODUC. SOBRE INVERS. DE VALORES NACIONALES.",null,{"$f":"SUM(D11:D16)","v":2668636190.8199997},null,{"$f":"SUM(F11:F17)","v":325833124.97000003},null,{"$f":"SUM(H11:H17)","v":2994469315.79}]
[]
[null,"ACUMULADO"]
[]
[null,"PRODUCTOS SOBRE INVERSIONES DE VALORES NACIONALES",null,"COLONES",null,"DOLARES",null,"TOTAL"]
[]
[null,"Intereses devengados",null,16631872471.099998,null,1117642166.46,null,17749514637.559998]
[null,"Amortización de descuento",null,21686514.259999998,null,5148479.13,null,26834993.389999997]
[null,"Comisión devengada",null,-1924783.27,null,-481152.95999999996,null,-2405936.23]
[null,"Amortización de prima",null,-908679419.92000008,null,-6279785.8699999992,null,-914959205.79000008]
[null,"Otros intereses devengados ",null,0,null,0,null,0]
[null,"Ingresos por Dividendos",null,0,null,547845931.40999997,null,547845931.40999997]
[]
[null,"TOTAL DE PRODUC. SOBRE INVERS. DE VALORES NACIONALES.",null,{"$f":"SUM(D24:D30)","v":15742954782.169998},null,{"$f":"SUM(F24:F30)","v":1663875638.1700001},null,{"$f":"SUM(H24:H30)","v":17406830420.339996}]

{"sheet":"Nota 2","index":5,"n_rows":36,"n_cols":12,"rows_kept":36,"cut":false,"hidden":false,"merged":[[2,2,3,6],[4,2,4,6]]}
[]
[null,null,"Nota 2:"]
[null,null,"Intereses sobre Saldos en Cuentas Corrientes"]
[]
[null,null,{"$f":"+'Nota 1'!B5","v":"al 30 de Junio de 2018"}]
[]
[]
[]
[]
[null,null,"Acumulado"]
[]
[null,null,"Cuenta Corriente ",null,"Banco",null,"Intereses Ganados en el Periodo"]
[]
[null,null,"1234-0",null,"Banco Nacional de Costa Rica ",null,1647.54]
[null,null,"229-32-9",null,"Banco de Costa Rica ",null,6707871.6399999997]
[null,null,"18-1019277",null,"Banco Popular y de Desarrollo Comunal ",null,6949.79]
[null,null,"1914-1 $",null,"Banco Popular y de Desarrollo Comunal "]
[null,null,"112247-9 $",null,"Banco de Costa Rica ",null,450660.28]
[null,null,"174961-7",null,"Banco de Costa Rica "]
[]
[null,null,"Total",null,null,null,{"$f":"SUM(G14:G20)","v":7167129.25}]
{"$rows_empty":14}
[{"$nulls":11},0]

{"sheet":"Nota 3","index":6,"n_rows":12,"n_cols":6,"rows_kept":12,"cut":false,"hidden":false,"merged":[[2,1,3,5],[4,1,4,5],[13,1,14,5]]}
[]
[null,"Nota 3:"]
[null,"Ganancias por Fluctuación Cambiaria"]
[]
[null,{"$f":"+'Nota 1'!$B$5:$H$5","v":"al 30 de Junio de 2018"}]
[]
[null,"Cuenta",null,"Mes",null,"Acumulado"]
[null,"Por Cuentas Corrientes",null,785853.33,null,15493494.75]
[null,"En Inversiones En Valores De Emisores Nacionales $",null,175212382.21000001,null,1914880447.0599999]
[null,"Por Cuentas Por Cobrar",null,7229.84,null,469948.34]
[null,"Por Productos Por Cobrar Sobre Inversion",null,1245184.8999999999,null,17762801.350000001]
[null,"Ganancia Total Generada",null,{"$f":"SUM(D8:D11)","v":177250650.28000003},null,{"$f":"SUM(F8:F11)","v":1948606691.4999998}]

{"sheet":"Nota 4","index":7,"n_rows":9,"n_cols":6,"rows_kept":9,"cut":false,"hidden":false,"merged":[[2,1,3,5],[4,1,4,5]]}
[]
[null,"Nota 4:"]
[null,"Ganancias por Variaciones en la Unidad de Referencia"]
[]
[null,{"$f":"+'Nota 1'!$B$5:$H$5","v":"al 30 de Junio de 2018"}]
[]
[null,"Cuenta",null,"Mes",null,"Acumulado"]
[null,"En valores emitidos por el Gobierno",null,3371064.06,null,1152783159.4000001]
[null,"Ganancia Total Generada",null,{"$f":"SUM(D8:D8)","v":3371064.06},null,{"$f":"SUM(F8:F8)","v":1152783159.4000001}]

{"sheet":"Nota 5","index":8,"n_rows":10,"n_cols":12,"rows_kept":10,"cut":false,"hidden":false,"merged":[[2,1,3,11],[4,1,4,11]]}
[]
[null,"Nota 5:"]
[null,"Ingresos sobre Préstamos a Afiliados y Pensionados "]
[]
[null,{"$f":"+'Nota 1'!$B$5:$H$5","v":"al 30 de Junio de 2018"}]
[]
[null,"Total de Préstamo",null,"Entidad",null,"Plazo",null,"Tasa actual",null,"Ingreso Por Interes mensual",null,"Ingreso Por Interes Acumulado"]
[]
[null,1000000000,null,"ANEJUD",null,"10 años",null,8.0799999999999997E-2,null,102623.76,null,1532817.18]
[{"$nulls":7}," "]

{"sheet":"Nota 6","index":9,"n_rows":39,"n_cols":14,"rows_kept":39,"cut":false,"hidden":false,"merged":[[28,15,31,21],[38,1,38,7],[23,1,23,7],[2,1,3,7],[4,1,4,7],[19,1,19,7],[25,1,25,7],[21,1,21,7]]}
[]
[null,"Nota 6:"]
[null,"PLAN DE CONTRIBUCIONES"]
[]
[null,{"$f":"++'Nota 1'!$B$5:$H$5","v":"al 30 de Junio de 2018"}]
[]
[null,"Aportes",null,"Porcentajes",null,"Mensual",null,"Acumulado"]
[]
[null,"Trabajadores",null,"11% y 13%",null,3010451693.0799999,null,15553440538.629999]
[null,"Patrono",null,0.14360000000000001,null,3258568676.5300002,null,19354397319.290001]
[null,"Estado",null,5.7999999999999996E-3,null,131831009.79000001,null,794220984.84000003]
[null,"Jubilados y Pensionados ",null,"11% y 13%",null,748006369.97000003,null,3879366321.1100001]
[null,"Contribución Solidaria",null,"-",null,68916834.469999999,null,89201098.939999998]
[]
[null,"Total Aportes",null,null,null,{"$f":"SUM(F9:F13)","v":7217774583.8400011},null,{"$f":"SUM(H9:H13)","v":39670626262.809998}]
[]
[]
[null,"Notas:   ",{"$nulls":11}," "]
[]
[null,"1-)  Mediante Acuerdo del Consejo Superior N° 2-2018, art I, se autoriza a disminuir el porcentaje del aporte estatal, a partir del mes de enero 2018 pasando de 1.24% a 0.58%, lo anterior por cuanto el Ministerio de Hacienda recortó del Presupuesto del Poder Judicial la suma de ¢1,200,000,000 (Mil doscientos millones de colones)."]
[]
[null,"2-) Mediante Acuerdo del Consejo Superior, sesión N°26-2018 del 5/04/2018, en su punto tercer indica:\n\"[...] modificar el acuerdo tomado en sesión N°2-18 del 11/01/2018, art I, por lo que deberá la Dirección de Gestión Humana registrar como porcentaje del aporte estatal al Fondo de Jubilaciones y Pensiones el definido por la Caja Costarricense del Seguro Social (CCSS)\". Según lo definido en este acuerdo el porcentaje regresa al 1.24% establecido en Decreto Ejecutivo N° 39202-MTSS-H en su artículo 2, publicado en la Gaceta N° 170 del martes 01 de setiembre del 2015."]
[]
[null,"3-) Mediante la publicación de la Ley 9544, que reforma el Regimen de Jubilaciones y Pensiones del Poder Judicial y Acuerdo del Consejo Superior Sesión N°46-18 celebrada el 22/05/2018, art VI, se solicita realizar a partir de esta fecha el incremento al aporte obrero del 11% al 13%, así como el rebajo de la contribución especial, solidaria y redistributiva a las personas jubiladas y pensionadas, conforme el articulo 236 de esta Ley."]
[]
[null,"4-) La Dirección de Gestión Humana mediante oficios 006-CP-DGH-2018, 009-CP-DGH-2018, 011-CP-DGH-2018, 012-C-DGH-2018 y 0017-CP-DGH-2018 remiten la información equivalente al 0.66% para los meses de Enero a Junio del año 2018, con el fin de revelar el detalle de la cuenta por cobrar por la diferencia porcentual hasta que se modifiquen los parametros a nivel de sistemas:"]
[]
[]
[]
[]
[null,null,null,"Mes",null,"Monto"]
[null,null,null,"Enero",null,120402999.88]
[null,null,null,"Febrero",null,140520637.69]
[null,null,null,"Marzo",null,136148891.56]
[null,null,null,"Abril*",null,135077110.63999999]
[null,null,null,"Mayo",null,137614704.16999999]
[null,null,null,"Junio",null,137617040.84999999]
[null,null,null,"Total",null,{"$f":"SUM(F32:F37)","v":807381384.78999996}]
[null,"Nota: Para el mes de abril 2018 mediante oficio 011-CP-DGH-2018, la DGH comunica el monto correspondiente al 0.66% de aporte estatal indicando una suma de ¢255,257,113.99, sin embargo, mediante correo electrónico del 29/05/2018, realizan una rectificación del monto por la suma de ¢135,077,110.64, dado lo anterior a partir del mes de mayo 2018, se muestra la suma correcta para el mes de Abril 2018."]

{"sheet":"Nota 7","index":10,"n_rows":14,"n_cols":6,"rows_kept":14,"cut":false,"hidden":false,"merged":[[2,1,3,5],[13,1,15,5],[4,1,4,5]]}
[]
[null,"Nota 7:"]
[null,"SALIDA DE RECURSOS"]
[]
[null,{"$f":"+'Nota 6'!B5:H5","v":"al 30 de Junio de 2018"}]
[]
[null,null,null,"Mensual",null,"Acumulado"]
[]
[null,"Aportes ",null,7148857749.3700008,null,39581425163.869995]
[null,"Rendimientos ",null,2607278718.6599998,null,15826232493.209999]
[]
[null,"TOTAL",null,{"$f":"SUM(D9:D10)","v":9756136468.0300007},null,{"$f":"SUM(F9:F10)","v":55407657657.079994}]
[]
[null,"Observación: Corresponde al traslado de todos los recursos de la cuenta patrimonial \"Reserva en formación\" a la cuenta \"Provisión para pensiones en curso de pago\""]

{"sheet":"Nota 8","index":11,"n_rows":12,"n_cols":6,"rows_kept":12,"cut":false,"hidden":false,"merged":[[2,1,3,5],[4,1,4,5]]}
[]
[null,"Nota 8:"]
[null,"Pérdida por Fluctuación Cambiaria"]
[]
[null,{"$f":"+'Nota 7'!B5:F5","v":"al 30 de Junio de 2018"}]
[]
[null,"Cuenta",null,"Mes",null,"Acumulado"]
[null,"Por Cuentas Corrientes",null,3084733.33,null,16014229.24]
[null,"En Inversiones En Valores De Emisores Nacionales $",null,295079874.93000001,null,2135026020.6700001]
[null,"Por Cuentas Por Cobrar",null,0.08,null,65381.51]
[null,"Por Productos Por Cobrar Sobre Inversion",null,2393117.66,null,22516980.239999998]
[null,"Pérdida Total Generada",null,{"$f":"SUM(D8:D11)","v":300557726},null,{"$f":"SUM(F8:F11)","v":2173622611.6599998}]

{"sheet":"Nota 9","index":12,"n_rows":10,"n_cols":6,"rows_kept":10,"cut":false,"hidden":false,"merged":[[3,1,4,5],[5,1,5,5]]}
[]
[null,"Nota 9:"]
[]
[null,"Pérdida por Variaciones en la Unidad de Referencia"]
[]
[null,{"$f":"+'Nota 8'!B5:F5","v":"al 30 de Junio de 2018"}]
[]
[null,"Cuenta",null,"Mes",null,"Acumulado"]
[null,"En valores emitidos por el Gobierno",null,100969199.22,null,223973394.62]
[null,"Pérdida Total Generada",null,{"$f":"SUM(D9:D9)","v":100969199.22},null,{"$f":"SUM(F9:F9)","v":223973394.62}]

{"sheet":"Nota 10","index":13,"n_rows":13,"n_cols":6,"rows_kept":13,"cut":false,"hidden":false,"merged":[[2,1,3,5],[4,1,4,5]]}
[]
[null,"Nota 10:"]
[null,"GASTOS GENERALES"]
[]
[null,{"$f":"+'Nota 9'!B6:F6","v":"al 30 de Junio de 2018"}]
[]
[null,"GASTOS GENERALES",null,"MENSUAL",null,"ACUMULADO"]
[]
[null,"Servicios Bancarios",null,0,null,387699.49]
[null,"Cotización Seguro De Enfermedad y Maternidad",null,503595145.19,null,2967173200.98]
[null,"Gastos Diversos",null,994.85,null,152751.87]
[]
[null,"TOTAL DE GASTOS GENERALES",null,{"$f":"SUM(D9:D12)","v":503596140.04000002},null,{"$f":"SUM(F9:F12)","v":2967713652.3399997}]

{"sheet":"Nota 11","index":14,"n_rows":20,"n_cols":8,"rows_kept":20,"cut":false,"hidden":false,"merged":[[2,1,3,7],[4,1,4,7]]}
[]
[null,"Nota 11:"]
[null,"Cuentas Corrientes y de Ahorro"]
[]
[null,{"$f":"+'Nota 10'!B5:F5","v":"al 30 de Junio de 2018"}]
[]
[" ","CUENTAS CORRIENTES Y DE AHORRO PROV.  PARA PENSIONES EN CURSO DE PAGO",null,"TOTAL ¢",null,"TIPO DE CAMBIO",null,"TOTAL $ \n"]
[]
[null,"Banco Nacional de C.R. Cta 1234-0",null,-9220.15]
[null,"Banco de Costa Rica Cta 229-32-9",null,364630903.81999999]
[null,"Banco de Costa Rica Cta 174961-7",null,99000]
[null,"Banco Popular Cta 1019277-0",null,105045278.23]
[null,"Banco Nacional de C.R. 2413-8 ",null,0]
[null,"Banco de Costa Rica 349803-4",null,76.290000000000006]
[null,"Banco de Costa Rica 349824-7",null,41]
[null,"Banco de Costa Rica Cta. 112247-9 $",null,6829442.3200000003,null,567.19000000000005,null,{"$f":"+D16/F16","v":12040.83696821171}]
[null,"Banco Nacional de C.R. Cta  601227-7 $",null,260882.55,null,{"$f":"F16","v":567.19000000000005},null,{"$f":"+D17/F17","v":459.95618752093651}]
[null,"Banco Popular Cta 1914-1 $",null,-558352.18000000005,null,{"$f":"F17","v":567.19000000000005},null,{"$f":"+D18/F18","v":-984.41823727498718}]
[]
[null,"TOTAL EN CUENTAS CORRIENTES Y DE AHORRO",null,{"$f":"SUM(D9:D18)","v":476298051.88000005},null,null,null,{"$f":"SUM(H16:H18)","v":11516.374918457659}]

{"sheet":"Nota 12","index":15,"n_rows":25,"n_cols":8,"rows_kept":25,"cut":false,"hidden":false,"merged":[[2,1,3,7],[6,1,6,3],[15,1,15,3],[4,1,4,7]]}
[]
[null,"Nota 12:"]
[null,"Inversiones en Valores de Emisores Nacionales "]
[]
[null,{"$f":"+'Nota 11'!B5:H5","v":"al 30 de Junio de 2018"}]
[]
[null,"COLONES"]
[]
[null,"Inv. Valor Facial",null,430829052291.53003]
[null,"Primas ",null,9977404475.3900013]
[null,"Descuentos",null,-197028382.97999996]
[]
[null,"SALDO INVERSIONES EN COLONES ",null,{"$f":"SUM(D9:D11)","v":440609428383.94006}]
[]
[]
[null,"SALDO DÓLARES",null,null,null,"TIPO DE CAMBIO ",null,"SALDO EN COLONES"]
[]
[null,"Inv. Valor Facial",null,70314936.279994354,null,567.19000000000005,null,39881928708.650002]
[null,"Primas ",null,82197.059803593162,null,567.19000000000005,null,46621350.350000009]
[null,"Descuentos",null,-278837.66998712957,null,567.19000000000005,null,-158153938.04000002]
[null,"Títulos de Participación",null,31389575.060526457,null,567.19000000000005,null,17803853078.580002]
[]
[null,"SALDO INVERSIONES EN DÓLARES (COLONIZADO)",null,{"$f":"SUM(D18:D21)","v":101507870.73033728},null,null,null,{"$f":"SUM(H18:H21)","v":57574249199.540001}]
[]
[null,"TOTAL GENERAL:",null,{"$f":"+D13+H23","v":498183677583.48004}]

{"sheet":"Nota 13","index":16,"n_rows":18,"n_cols":4,"rows_kept":18,"cut":false,"hidden":false,"merged":[[2,1,3,3],[4,1,4,3],[14,1,15,3],[17,1,18,3],[17,4,18,5]]}
[]
[null,"Nota 13:"]
[null,"CUENTAS POR COBRAR"]
[]
[null,{"$f":"+'Nota 12'!B5:H5","v":"al 30 de Junio de 2018"}]
[]
[null,"Cuentas por Cobrar"]
[]
[null,"Títulos vencidos pendientes de cobro",null,390427933.32999998]
[null,"Impuesto Sobre La Renta Por Cobrar (1)",null,285038379.32999998]
[null,"Sumas Pend. De cobrar (2)",null,38301.71]
[]
[null,"Saldo:",null,{"$f":"D9+D10+D11","v":675504614.37}]
[]
[null,"1-) Corresponden aquellas sumas que debe recuperar el Régimen por concepto de exención del 8% del impuesto sobre la renta de los títulos valores, que por su situación particular, no es posible cobrarlos inmediatamente con el vencimiento de los cupones"]
[]
[]
[null,"2-)  En esta cuenta se registrará las cuentas por cobrar, generadas de la captación de inversiones, por comisiones pagadas de más, intereses moratorios u otros."]

{"sheet":"Nota 14","index":17,"n_rows":18,"n_cols":4,"rows_kept":18,"cut":false,"hidden":false,"merged":[[3,1,4,3],[5,1,5,3]]}
[]
[null,"Nota 14:"]
[]
[null,"Productos por cobrar sobre Inversiones de Emisores Nacionales"]
[]
[null,{"$f":"+'Nota 13'!B5:D5","v":"al 30 de Junio de 2018"}]
[]
[null,"Productos por cobrar sobre Inversiones"]
[]
[null,"Sobre Valores Emitidos Por El Banco Central",null,423188064.01999998]
[null,"Sobre Valores Emitidos Por El Gobierno",null,6409992361.5200005]
[null,"Sobre Valor. Emit. otras Ent Pub. no Fininancieras",null,75451605.400000006]
[null,"Sobre Valores Emitidos Por Bancos Comerciales",null,823003932.29999995]
[null,"Sobre Val. Emit. Bcos. Pub. Ley. Especiales",null,126016957.67]
[null,"Sobre Val. Emit. Bcos. Bancos Privados",null,51227780.520000003]
[null,"Dividendos por Cobrar",null,289157009.70999998]
[]
[null,"Saldo",null,{"$f":"SUM(D10:D17)","v":8198037711.1400013}]

{"sheet":"Nota 15","index":18,"n_rows":21,"n_cols":4,"rows_kept":21,"cut":false,"hidden":false,"merged":[[2,1,3,3],[4,1,4,3]]}
[]
[null,"Nota 15:"]
[null,"Préstamos por Cobrar"]
[]
[null,{"$f":"+'Nota 14'!B6:D6","v":"al 30 de Junio de 2018"}]
[]
[null,"SUMAS GIRADAS A:",null," MONTO "]
[]
[null,"ANEJUD:  Débito No. 2863 de la Cta 174961-7 BCR el 9 de diciembre de 2008  (Autorizado por la Dirección Ejecutiva oficio No.9488-DE-08)",null,166244019.15000001]
[null,"ANEJUD: Débito No. 20806860 de la Cta 1234-0 BNCR el 9 de diciembre de 2008 (Autorizado por la Dirección Ejecutiva oficio No.9488-DE-08)",null,410921974.85000002]
[null,"ANEJUD:  Débito No. 379 de la Cta 229-32-9 BCR el 10 de febrero de 2009  (Autorizado por la Dirección Ejecutiva con oficio No. 1123-DE-2009 ).  El desembolso autorizado por esa Dirección Ejecutiva es por ¢422.834.006 de los cuales y a solicitud de ANEJUD con oficio del 10 de febrero de 2009 a Don Walter Jiménez Sorio, Jefe del Departamento Financiero Contable en su oportunidad, se deduce la primera cuota de intereses cancelada por adelantado de ¢6.876.239.  El total girado con el débito No. 379 es ¢415.957.767. ",null,422834006]
[]
[null,"TOTAL DE LOS DESEMBOLSOS",null,{"$f":"SUM(D9:D11)","v":1000000000}]
[]
[null,"Menos. Amortizaciones",null,980629473.66000044]
[]
[null,"Saldo del préstamo",null,{"$f":"+D13-D15","v":19370526.339999557}]
[]
[null,"Mas: Intereses por cobrar"]
[]
[null,"TOTAL POR COBRAR",null,{"$f":"+D17+D19","v":19370526.339999557}]

{"sheet":"Nota 16","index":19,"n_rows":25,"n_cols":10,"rows_kept":25,"cut":false,"hidden":false,"merged":[[2,1,3,9],[4,1,4,9]]}
[]
[null,"Nota 16:"]
[null,"APORTES POR COBRAR"]
[]
[null,{"$f":"+'Nota 15'!B5:D5","v":"al 30 de Junio de 2018"}]
[]
[null,"Nota",null,"Sub-nota",null,"APORTES POR COBRAR",null,"Detalle",null,"Total"]
[]
[null,"16.1",null,null,null,"Aporte por cobrar a los trabajadores",null,null,null,{"$f":"SUM(H10:H12)","v":3724588180.6100001}]
[null,null,null,"16.1.1",null,"Aporte Ordinario",null,124793225.64]
[null,null,null,"16.1.2",null,"Aporte Ordinario S .Escolar",null,1183374535.0699999]
[null,null,null,"16.1.3",null,"Aporte Reconocimiento de tiempo servido",null,2416420419.9000001]
[null,"16.2",null,null,null,"Aportes por cobrar al Patrono",null,null,null,{"$f":"SUM(H14:H15)","v":3011373986.3087997}]
[null,null,null,"16.2.1",null,"Aportes Por Cobrar Poder Jud.-Patrono",null,1522629160.8448]
[null,null,null,"16.2.2",null,"Apor. x Cobrar Poder Jud.-Patrono (S.E)",null,1488744825.464]
[null,"16.3",null,null,null,"Aportes por cobrar al Estado",null,null,null,{"$f":"SUM(H17:H18)","v":252393852.95000002}]
[null,null,null,"16.3.1",null,"Aportes Por Cobrar Poder Jud.-Estado",null,61584927.399999999]
[null,null,null,"16.3.2",null,"Apor. x Cobrar Poder Jud.-Estado (S.E)",null,190808925.55000001]
[null,"16.4",null,null,null,"Otros aportes por cobrar",null,null,null,{"$f":"SUM(H20:H23)","v":243824462.44999999}]
[null,null,null,"16.4.1",null,"Sumas canceladas de más a Jubilados y Pensionados",null,138362454.06999999]
[null,null,null,"16.4.2",null,"Aportes Reconocimiento de Tiempo Servido Fuera del Poder Judicial (RTSFPJ)",null,5877933.5299999993]
[null,null,null,"16.4.3",null,"Otros aportes por cobrar entidades deductoras",null,1491072.13]
[null,null,null,"16.4.4",null,"Sumas canceladas de más a Jubilados y Pensionados (Aguinaldo)",null,98093002.719999999]
[]
[{"$nulls":5},"TOTAL ",null,null,null,{"$f":"SUM(J9:J23)","v":7232180482.3188}]

{"sheet":"Nota 17","index":20,"n_rows":12,"n_cols":8,"rows_kept":12,"cut":false,"hidden":false,"merged":[[2,1,3,7],[4,1,4,7],[11,1,11,7]]}
[]
[null,"Nota 17:"]
[null,"INTANGIBLES"]
[]
[null,{"$f":"+'Nota 16'!B5:J5","v":"al 30 de Junio de 2018"}]
[]
[null,"Detalle",null,"Monto",null,"Amortización",null,"Total"]
[null,"Sistema inversiones \"Internet Systems Development Insyde S.A\"",null,7618670,null,-7618670,null,0]
[]
[]
[null,"Nota:"]
[null,"Corresponde al registro de la compra del Sistema de Inversiones a la empresa Internet Systems Development Insyde S.A. con un valor de $14,750.00, valorado al tipo de cambio de la fecha de adquisición del activo (15 de agosto de 2007) de ¢516.52, para un total de ¢7,618,670. A dicho monto se descuenta la amortización acumulada al cierre del presente mes que asciende a ¢7,618,670 para un activo neto de ¢0.00. La vida útil del sistema en mención es de 5 años y considerando que fue registrado en setiembre del 2007 se encuentra depreciado en su totalidad, no obstante, a la fecha de este informe se encuentra en funcionamiento. \n\nEn el periodo comprendido entre el 15 de julio a 12 de diciembre del 2011 la Dirección de Tecnología de Información realizó mejoras al sistema de Inversiones por la suma de ¢1.673.895. Lo anterior, de acuerdo con la información suministrada por la Dirección de Tecnología de la Información, mediante correo electrónico del 27 de abril del 2017 y oficio 1635-DTI-2017, dicho monto se encuentra registrado actualmente en los registros contables del Poder Judicial por igual suma.\n\nCon oficio 425-SC-2015 de 26 de agosto del 2015, se realizó la consulta a la Superintendencia de Pensiones (SUPEN) sobre la forma de registro contable de la información suministrada por la Dirección de Tecnología de Información, en virtud de que, en el Manual de Cuentas para el Régimen de Capitalización Colectiva emitido por dicha Superintendencia, no se observa alguna cuenta contable para el registro de la reevaluación de activos intangibles.\n\n La SUPEN ante la consulta realizada, indicó lo siguiente:\n\n“[…] conforme lo establecido en las Normas internacionales de Información Financiera (NIIF), se le comunica que no existe forma alguna de atribuir costo a un activo intangible luego del final de su vida útil: aunque esté en operación y generando beneficios, su valor en libros deberá seguir siendo cero…” \n\n\n\n\n"]

{"sheet":"Nota 18","index":21,"n_rows":14,"n_cols":5,"rows_kept":14,"cut":false,"hidden":false,"merged":[[3,2,4,4],[5,2,5,4]]}
[]
[null,null,"Nota 18:"]
[]
[null,null,"Retenciones A Pensionados"]
[]
[null,null,{"$f":"+'Nota 17'!B5","v":"al 30 de Junio de 2018"}]
[]
[null,null,"RETENCIONES A JUBILADOS Y PENSIONADOS",null,"TOTAL"]
[]
[null,null,"Impuesto Sobre La Renta",null,422615316.37]
[null,null,"Caja Costarricense Seguro Social",null,287768656.47000003]
[null,null,"Otras retenciones ",null,715.38]
[]
[null,null,"TOTAL DE RETENCIONES A JUBILADOS Y PENSIONADOS",null,{"$f":"SUM(E10:E13)","v":710384688.22000003}]

{"sheet":"Nota 19","index":22,"n_rows":16,"n_cols":4,"rows_kept":16,"cut":false,"hidden":false,"merged":[[3,1,4,3],[5,1,5,3]]}
[]
["Nota 19:"]
[]
[null,"Obligaciones Por Liquidar Empleados y Exempleados"]
[]
[null,{"$f":"+'Nota 18'!C6","v":"al 30 de Junio de 2018"}]
[]
[]
[null,"OBLIGACIONES POR LIQUIDAR EMPL. Y EXEMPL.",null,"TOTAL"]
[]
[null,"VCLO",null,64094]
[null,"ASP",null,88531.359999999986]
[null,"EBZ",null,18439.689999999999]
[null,"WQS",null,10278.780000000001]
[]
[null,"OBLIGACIONES POR LIQUIDAR EMPL. Y EXEMPL.",null,{"$f":"SUM(D11:D15)","v":181343.83}]

{"sheet":"Nota 20","index":23,"n_rows":22,"n_cols":4,"rows_kept":22,"cut":false,"hidden":false,"merged":[[3,1,4,3],[5,1,5,3],[21,1,29,3]]}
[]
[null,"Nota 20:"]
[]
[null,"Obligaciones Transitorias por Liquidar"]
[]
[null,{"$f":"+'Nota 19'!B6:D6","v":"al 30 de Junio de 2018"}]
[]
[null,"Obligaciones Transitorias por Liquidar",null,"Saldo"]
[]
[null,"Benef. no retirados y por fallecimiento",null,29670624.09]
[null,"Sumas en transito por aclarar",null,2822005]
[null,"Instituciones Financieras -Banco de Costa Rica",null,49693.56]
[null,"Institucione Financieras Banco Popular ¢",null,498197.34]
[null,"Instituciones Gubernamentales-Caja Costarricense Seguro Social",null,3796451.36]
[null,"Anejud",null,3085842.67]
[null,"Otros-Errores Bancarios",null,48619662.380000003]
[null,"*Aporte Junta Administradora FJP - Jubilados y Pensionados",null,37308224.43]
[null,"Instituciones Financieras-Banco Popular $",null,232251]
[]
[null,"Total Obligaciones Transitorias por Liquidar",null,{"$f":"SUM(D10:D18)","v":126082951.83000001}]
[]
[null,"* Nota: Mediante la publicación de la Ley 9544, se aplica la reforma al capítulo IV, art 239, referente a la comisión por gastos administrativos, la cua indica:      \" Surgirá de deducir un cinco por mil de los sueldos de que devengen los servidores judicial, así como de las jubilaciones y las pensiones a cargo del Fondo. Con estos recursos se pagarán las dietas de los miembros de la Junta Administradora, los salarios de su personal y, en general, sus gastos administrativos...\", dicho aporte dio inicio a partir del 22/05/2018."]

{"sheet":"Nota 21","index":24,"n_rows":9,"n_cols":6,"rows_kept":9,"cut":false,"hidden":false,"merged":[[3,1,4,5],[5,1,5,5]]}
[]
[null,"Nota 21:"]
[]
[null,"Cotización Seguro De Enfermedad y Maternidad"]
[]
[null,{"$f":"+'Nota 20'!B6:D6","v":"al 30 de Junio de 2018"}]
[]
[null,"Entidad",null,"Porcentaje",null,"Monto"]
[null,"Caja Costarricense del Seguro Social",null,8.7499999999999994E-2,null,503601116.66000003]

{"sheet":"Nota 22","index":25,"n_rows":18,"n_cols":10,"rows_kept":18,"cut":false,"hidden":false,"merged":[[2,1,3,9],[4,1,4,9],[17,1,27,9]]}
[]
[null,"Nota 22:"]
[null,"PROVISIONES PARA PENSIONES EN CURSO DE PAGO"]
[]
[null,{"$f":"+'Nota 21'!B6:F6","v":"al 30 de Junio de 2018"}]
[]
[null,"Nota",null,"Sub-nota",null,"APORTES POR COBRAR",null,"Detalle",null,"Total"]
[]
[null,"22.1",null,null,null,"Recursos recibido de reservas en formación",null,null,null,988698087415.21997]
[null,"22.2",null,null,null,"(Menos) Pago plan de beneficios",null,null,null,477631050635.91998]
[null,null,null,"22.2.1",null,"Traslados a otros regímenes",null,466282035.79000002]
[]
[{"$nulls":5},"TOTAL ",null,null,null,{"$f":"+J9-J10","v":511067036779.29999}]
[]
[]
[null,"Nota:"]
[]
[null,"Mediante oficio 426-SC-2017 con fecha del 22 de diciembre 2017, se informa a la Dirección Ejecutiva sobre el resultado del estudio de Auditoria informe N°624-30-SAFJP-2017, en el que se solicita: \"4.10. Realizar los ajustes correspondientes al registro contable de los aportes patronal y estatal, una vez que Gestión Humana remita los reportes que sustentan las cuentas por cobrar al Poder Judicial, de aquellos periodos en que se utilizó un dato incorrecto, considerando que ya se efectuó un pago producto del cambio en dichos aportes (acuerdo del artículo XXV de sesión de Corte Plena No. 5-17 celebrada el 6 de marzo de 2017) y que a la fecha se utilizan porcentajes incorrectos\", producto de dicho estudio se determina una cuenta por pagar al Poder Judicial de ¢219,712,457.14, la cual se revela como nota al estado financiero hasta que la Dirección Ejecutiva gire instrucciones superiores. Cabe destacar que mediante oficios 129-SC-2018 con fecha de 23 de marzo de 2018 y 188-SC-2018 con fecha de 10 de mayo 2018, se reitera la información."]

{"sheet":"Nota 23","index":26,"n_rows":9,"n_cols":4,"rows_kept":9,"cut":false,"hidden":false,"merged":[[3,1,4,3],[5,1,5,3]]}
[]
[null,"Nota 23:"]
[]
[null,"CUENTAS DE ORDEN DEUDORAS Y ACREDORAS"]
[]
[null,{"$f":"+'Nota 22'!B5:J5","v":"al 30 de Junio de 2018"}]
[]
[null,"Concepto",null,"Monto"]
[null,"Cuentas por cobrar por reconocimiento de tiempo servido en otras dependencias o instituciones públicas, de aquellos servidores en condición de propietarios que renunciaron al Poder Judicial. ",null,289645067.5]